fUSD/lending_fUSD_20250119
["ID","MTS","AMOUNT","RATE_DAILY","PERIOD"]
[349563929,1737297041505,-500.0,0.00019999,2]
[349563930,1737297041514,-500.0,0.00019999,2]
[349563931,1737297041522,-500.0,0.00019999,2]
[349563932,1737297041534,-542.2,0.00019999,2]
[349563933,1737297041543,-580.91,0.00019999,2]
[349563934,1737297041554,-555.56,0.00019999,2]
[349563935,1737297041563,-500.0,0.00019999,2]
[349563936,1737297041572,-766.47,0.00019999,2]
[349563937,1737297041581,-573.09,0.00019999,2]
[349563938,1737297041590,-500.0,0.00019999,2]
[349563939,1737297041600,-500.0,0.00019999,2]
[349563940,1737297041608,-512.48,0.00019999,2]
[349563941,1737297041617,-1534.11,0.00019999,2]
[349563942,1737297041626,-813.94,0.00019999,2]
[349563943,1737297041636,-798.62,0.00019999,2]
[349563944,1737297041645,-1219.69,0.00019999,2]
[349563945,1737297041654,-500.0,0.00019999,2]
[349563946,1737297041663,-500.0,0.00019999,2]
[349563947,1737297041672,-500.0,0.00019999,2]
[349563948,1737297041682,-1059.51,0.00019999,2]
[349563949,1737297041691,-500.0,0.00019999,2]
[349563950,1737297041700,-500.0,0.00019999,2]
[349563951,1737297041709,-500.0,0.00019999,2]
[349563952,1737297041719,-836.41,0.00019999,2]
[349563953,1737297041728,-2009.29,0.00019999,2]
[349563954,1737297041737,-500.0,0.00019999,2]
[349563955,1737297041746,-500.0,0.00019999,2]
[349563956,1737297041755,-1977.7,0.00019999,2]
[349563957,1737297042093,-1978.06,0.00019999,2]
[349563958,1737297042109,-800.83,0.00019999,2]
[349563959,1737297042120,-500.0,0.00019999,2]
[349563960,1737297042129,-2635.49,0.00019999,2]
[349563961,1737297042142,-691.78,0.00019999,2]
[349563962,1737297042152,-500.0,0.00019999,2]
[349563963,1737297042162,-500.0,0.00019999,2]
[349563964,1737297042172,-500.0,0.00019999,2]
[349563965,1737297042182,-500.0,0.00019999,2]
[349563966,1737297042193,-4047.21,0.00019999,2]
[349563967,1737297042202,-500.0,0.00019999,2]
[349563968,1737297042212,-529.81,0.00019999,2]
[349563969,1737297042221,-500.0,0.00019999,2]
[349563970,1737297042231,-500.0,0.00019999,2]
[349563971,1737297042240,-500.0,0.00019999,2]
[349563972,1737297042249,-500.0,0.00019999,2]
[349563973,1737297042258,-500.0,0.00019999,2]
[349563974,1737297042267,-500.0,0.00019999,2]
[349563975,1737297042277,-513.23,0.00019999,2]
[349563976,1737297042286,-278.02731597,0.00019999,2]
[349563977,1737297042296,-922.3,0.00019999,2]
[349563978,1737297042308,-4552.87,0.00019999,2]
[349563979,1737297042317,-643.20391247,0.00019999,2]
[349563980,1737297042326,-643.63,0.00019999,2]
[349563981,1737297042336,-500.0,0.00019999,2]
[349563982,1737297042344,-500.0,0.00019999,2]
[349563983,1737297042354,-558.78,0.00019999,2]
[349563984,1737297042363,-683.47,0.00019999,2]
[349563985,1737297042374,-871.01,0.00019999,2]
[349563986,1737297042384,-525.32,0.00019999,2]
[349563987,1737297042395,-988.6,0.00019999,2]
[349563988,1737297042404,-503.13,0.00019999,2]
[349563989,1737297042414,-3769.81,0.00019999,2]
[349563990,1737297042424,-1181.73,0.00019999,2]
[349563991,1737297042434,-753.13,0.00019999,2]
[349563992,1737297042443,-500.0,0.00019999,2]
[349563995,1737297042453,-2169.36,0.00019999,2]
[349563997,1737297042462,-500.0,0.00019999,2]
[349563999,1737297042471,-500.0,0.00019999,2]
[349564000,1737297042481,-500.0,0.00019999,2]
[349564001,1737297042491,-500.0,0.00019999,2]
[349564002,1737297042500,-715.79,0.00019999,2]
[349564003,1737297042509,-500.0,0.00019999,2]
[349564004,1737297042519,-770.14,0.00019999,2]
[349564005,1737297042528,-505.49,0.00019999,2]
[349564006,1737297042537,-500.0,0.00019999,2]
[349564007,1737297042546,-500.0,0.0002,2]
[349564008,1737297042558,-1037.30790127,0.0002,2]
[349564009,1737297042568,-500.0,0.0002,2]
[349564010,1737297042577,-500.0,0.0002,2]
[349564013,1737297042586,-600.0,0.0002,4]
[349564015,1737297042596,-594.73,0.0002,2]
[349564017,1737297042605,-500.0,0.0002,2]
[349564021,1737297042614,-500.0,0.0002,2]
[349564024,1737297042623,-500.0,0.0002,2]
[349564025,1737297042632,-500.0,0.0002,2]
[349564026,1737297042642,-500.0,0.0002,2]
[349564028,1737297042650,-500.0,0.0002,2]
[349564030,1737297042660,-500.0,0.0002,2]
[349564031,1737297042669,-500.0,0.0002,2]
[349564034,1737297042678,-500.0,0.0002,2]
[349564037,1737297042687,-894.29,0.0002,2]
[349564040,1737297042696,-2357.36630487,0.0002,2]
[349564044,1737297042705,-518.7289,0.00020173,2]
[349564047,1737297042714,-154.36,0.00020254,2]
[349564049,1737297042723,-500.0,0.00020272,2]
[349564050,1737297042733,-500.0,0.00020272,2]
[349564051,1737297042743,-500.0,0.00020272,2]
[349564052,1737297042753,-564.97,0.00020272,2]
[349564053,1737297042763,-500.0,0.00020272,2]
[349564054,1737297042773,-500.0,0.00020272,2]
[349564055,1737297042782,-888.79,0.00020272,2]
[349564056,1737297042792,-513.62,0.00020272,2]
[349564057,1737297042803,-1454.93,0.00020272,2]
[349564058,1737297042812,-778.47,0.00020272,2]
[349564059,1737297042821,-1218.41,0.00020272,2]
[349564060,1737297042831,-1427.49,0.00020272,2]
[349564061,1737297042841,-500.0,0.00020272,2]
[349564062,1737297042851,-610.78,0.00020272,2]
[349564063,1737297042861,-699.01,0.00020272,2]
[349564064,1737297042871,-500.0,0.00020272,2]
[349564065,1737297042880,-1351.91,0.00020272,2]
[349564066,1737297042889,-1249.63,0.00020272,2]
[349564067,1737297042899,-500.0,0.00020272,2]
[349564068,1737297042910,-500.0,0.00020272,2]
[349564069,1737297042919,-500.0,0.00020272,2]
[349564070,1737297042928,-2627.85,0.00020272,2]
[349564071,1737297042938,-969.05,0.00020272,2]
[349564072,1737297042959,-500.0,0.00020272,2]
[349564073,1737297042970,-620.96,0.00020272,2]
[349564074,1737297042979,-500.0,0.00020272,2]
[349564075,1737297042989,-500.0,0.00020273,2]
[349564076,1737297042999,-500.0,0.00020273,2]
[349564077,1737297043008,-500.0,0.00020273,2]
[349564078,1737297043018,-500.0,0.00020273,2]
[349564079,1737297043027,-500.0,0.00020273,2]
[349564080,1737297043036,-500.0,0.00020273,2]
[349564081,1737297043046,-500.0,0.00020273,2]
[349564082,1737297043056,-414.85779499,0.00020273,2]
[349564083,1737297043066,-500.0,0.00020273,2]
[349564084,1737297043075,-623.00274085,0.00020273,2]
[349564085,1737297043084,-500.0,0.00020273,2]
[349564086,1737297043093,-500.0,0.00020273,2]
[349564087,1737297043102,-394.6824079,0.00020273,2]
[349564088,1737297043111,-500.0,0.00020273,2]
[349564089,1737297043121,-500.0,0.00020273,2]
[349564090,1737297043130,-500.0,0.00020273,2]
[349564091,1737297043143,-500.0,0.00020273,2]
[349564092,1737297043152,-500.0,0.00020273,2]
[349564093,1737297043162,-500.0,0.00020273,2]
[349564094,1737297043171,-500.0,0.00020273,2]
[349564095,1737297043183,-500.0,0.00020273,2]
[349564096,1737297043199,-500.0,0.00020273,2]
[349564097,1737297043209,-500.0,0.00020273,2]
[349564099,1737297043221,-500.0,0.00020273,2]
[349564101,1737297043231,-500.0,0.00020273,2]
[349564103,1737297043240,-519.90641778,0.00020273,2]
[349564105,1737297043249,-500.0,0.00020273,2]
[349564107,1737297043259,-1465.18,0.00020273,2]
[349564109,1737297043268,-500.0,0.00020273,2]
[349564111,1737297043277,-500.0,0.00020273,2]
[349564113,1737297043286,-500.0,0.00020273,2]
[349564115,1737297043295,-500.0,0.00020273,2]
[349564116,1737297043307,-500.0,0.00020273,2]
[349564117,1737297043316,-500.0,0.00020273,2]
[349564118,1737297043326,-500.0,0.00020273,2]
[349564119,1737297043335,-500.0,0.00020273,2]
[349564120,1737297043344,-570.1090013,0.00020273,2]
[349564121,1737297043354,-500.0,0.00020273,2]
[349564122,1737297043363,-500.0,0.00020273,2]
[349564123,1737297043373,-500.0,0.00020273,2]
[349564124,1737297043382,-504.62,0.00020273,2]
[349564125,1737297043391,-594.73,0.00020273,2]
[349564126,1737297043400,-500.0,0.00020273,2]
[349564127,1737297043410,-500.0,0.00020273,2]
[349564128,1737297043419,-500.0,0.00020273,2]
[349564129,1737297043428,-500.0,0.00020273,2]
[349564131,1737297043438,-500.0,0.00020273,2]
[349564132,1737297043447,-500.0,0.00020273,2]
[349564133,1737297043456,-500.0,0.00020273,2]
[349564134,1737297043466,-267.807979,0.00020273,2]
[349564135,1737297043475,-500.0,0.00020273,2]
[349564136,1737297043484,-500.0,0.00020273,2]
[349564137,1737297043494,-400.79432909,0.00020273,2]
[349564138,1737297043503,-500.0,0.00020273,2]
[349564139,1737297043512,-500.0,0.00020273,2]
[349564140,1737297043521,-500.0,0.00020273,2]
[349564141,1737297043531,-475.588485,0.00020273,2]
[349564142,1737297043539,-500.0,0.00020273,2]
[349564143,1737297043549,-500.0,0.00020273,2]
[349564144,1737297043562,-500.0,0.00020273,2]
[349564145,1737297043571,-500.0,0.00020273,2]
[349564146,1737297043580,-181.72976812,0.00020273,2]
[349564147,1737297043590,-500.0,0.00020273,2]
[349564148,1737297043599,-500.0,0.00020273,2]
[349564149,1737297043610,-273.32243273,0.00020273,2]
[349564150,1737297043619,-500.0,0.00020273,2]
[349564151,1737297043628,-295.0169728,0.00020273,2]
[349564152,1737297043637,-500.0,0.00020273,2]
[349564153,1737297043647,-500.0,0.00020273,2]
[349564154,1737297043655,-500.0,0.00020273,2]
[349564155,1737297043665,-500.0,0.00020273,2]
[349564156,1737297043674,-500.0,0.00020273,2]
[349564157,1737297043683,-500.0,0.00020273,2]
[349564158,1737297043692,-894.29,0.00020273,2]
[349564159,1737297043701,-500.0,0.00020273,2]
[349564160,1737297043710,-500.0,0.00020273,2]
[349564161,1737297043719,-500.0,0.00020273,2]
[349564162,1737297043729,-500.0,0.00020273,2]
[349564163,1737297043739,-500.0,0.00020273,2]
[349564164,1737297043749,-500.0,0.00020273,2]
[349564165,1737297043760,-500.0,0.00020273,2]
[349564166,1737297043769,-500.0,0.00020273,2]
[349564167,1737297043778,-500.0,0.00020273,2]
[349564169,1737297043788,-960.31,0.00020273,2]
[349564171,1737297043797,-500.0,0.00020273,2]
[349564173,1737297043811,-2914.22,0.00020273,2]
[349564174,1737297043819,-642.02,0.00020273,2]
[349564175,1737297043829,-1080.71,0.00020273,2]
[349564176,1737297043838,-500.0,0.00020273,2]
[349564177,1737297043847,-675.63,0.00020273,2]
[349564178,1737297043856,-1554.32,0.00020273,2]
[349564179,1737297043866,-950.79,0.00020273,2]
[349564180,1737297043875,-500.0,0.00020273,2]
[349564181,1737297043888,-531.04,0.00020273,2]
[349564182,1737297043900,-500.0,0.00020273,2]
[349564183,1737297043911,-500.0,0.00020273,2]
[349564184,1737297043922,-500.0,0.00020273,2]
[349564185,1737297043934,-1112.84,0.00020273,2]
[349564186,1737297043943,-1029.94,0.00020273,2]
[349564187,1737297043952,-500.0,0.00020273,2]
[349564188,1737297043961,-500.0,0.00020273,2]
[349564189,1737297043970,-500.0,0.00020273,2]
[349564190,1737297043979,-500.0,0.00020273,2]
[349564191,1737297043988,-500.0,0.00020273,2]
[349564192,1737297043998,-562.67,0.00020273,2]
[349564193,1737297044007,-500.0,0.00020273,2]
[349564194,1737297044016,-500.0,0.00020273,2]
[349564195,1737297044026,-500.0,0.00020273,2]
[349564196,1737297044036,-500.0,0.00020273,2]
[349564197,1737297044045,-500.0,0.00020273,2]
[349564198,1737297044058,-627.94,0.00020273,2]
[349564199,1737297044068,-500.0,0.00020273,2]
[349564200,1737297044077,-988.26,0.00020273,2]
[349564201,1737297044087,-767.92,0.00020273,2]
[349564202,1737297044097,-500.0,0.00020273,2]
[349564203,1737297044106,-1345.32,0.00020273,2]
[349564204,1737297044116,-500.0,0.00020273,2]
[349564205,1737297044125,-500.0,0.00020273,2]
[349564206,1737297044137,-500.0,0.00020273,2]
[349564207,1737297044149,-542.2,0.00020273,2]
[349564208,1737297044159,-580.91,0.00020273,2]
[349564209,1737297044169,-555.56,0.00020273,2]
[349564210,1737297044181,-500.0,0.00020273,2]
[349564211,1737297044191,-766.47,0.00020273,2]
[349564212,1737297044200,-573.09,0.00020273,2]
[349564213,1737297044210,-500.0,0.00020273,2]
[349564214,1737297044220,-500.0,0.00020273,2]
[349564215,1737297044230,-512.48,0.00020273,2]
[349564216,1737297044240,-1534.11,0.00020273,2]
[349564217,1737297044250,-813.94,0.00020273,2]
[349564218,1737297044259,-798.62,0.00020273,2]
[349564219,1737297044269,-1219.69,0.00020273,2]
[349564220,1737297044279,-500.0,0.00020273,2]
[349564221,1737297044290,-500.0,0.00020273,2]
[349564222,1737297044300,-500.0,0.00020273,2]
[349564223,1737297044312,-1059.51,0.00020273,2]
[349564224,1737297044322,-500.0,0.00020273,2]
[349564225,1737297044332,-500.0,0.00020273,2]
[349564226,1737297044342,-500.0,0.00020273,2]
[349564227,1737297044351,-836.41,0.00020273,2]
[349564228,1737297044361,-2009.29,0.00020273,2]
[349564229,1737297044370,-500.0,0.00020273,2]
[349564230,1737297044380,-500.0,0.00020273,2]
[349564231,1737297044389,-1977.7,0.00020273,2]
[349564232,1737297044399,-1978.06,0.00020273,2]
[349564233,1737297044409,-800.83,0.00020273,2]
[349564234,1737297044418,-500.0,0.00020273,2]
[349564235,1737297044427,-2635.49,0.00020273,2]
[349564236,1737297044436,-691.78,0.00020273,2]
[349564237,1737297044446,-500.0,0.00020273,2]
[349564238,1737297044455,-500.0,0.00020273,2]
[349564239,1737297044465,-500.0,0.00020273,2]
[349564240,1737297044474,-500.0,0.00020273,2]
[349564241,1737297044483,-3785.86402152,0.00020273,2]
[349564242,1737297044618,-261.34597848,0.00020273,2]
[349564243,1737297044628,-500.0,0.00020273,2]
[349564244,1737297044638,-529.81,0.00020273,2]
[349564245,1737297044648,-500.0,0.00020273,2]
[349564246,1737297044657,-500.0,0.00020273,2]
[349564247,1737297044667,-500.0,0.00020273,2]
[349564248,1737297044678,-500.0,0.00020273,2]
[349564249,1737297044688,-513.23,0.00020273,2]
[349564250,1737297044697,-922.3,0.00020273,2]
[349564251,1737297044707,-4552.87,0.00020273,2]
[349564252,1737297044716,-643.63,0.00020273,2]
[349564253,1737297044725,-70.85858467,0.00020273,2]
[349564254,1737297044738,-429.14141533,0.00020273,2]
[349564255,1737297044748,-500.0,0.00020273,2]
[349564256,1737297044757,-558.78,0.00020273,2]
[349564257,1737297044767,-683.47,0.00020273,2]
[349564258,1737297044777,-871.01,0.00020273,2]
[349564259,1737297044787,-525.32,0.00020273,2]
[349564260,1737297044797,-988.6,0.00020273,2]
[349564261,1737297044810,-503.13,0.00020273,2]
[349564262,1737297044819,-185.64126777,0.00020273,2]
[349564263,1737297044831,-1014.14013679,0.00020273,2]
[349564264,1737297044842,-2570.02859544,0.00020273,2]
[349564265,1737297044851,-1181.73,0.00020273,2]
[349564266,1737297044861,-753.13,0.00020273,2]
[349564267,1737297044871,-500.0,0.00020273,2]
[349564268,1737297044881,-2169.36,0.00020273,2]
[349564269,1737297044891,-500.0,0.00020273,2]
[349564270,1737297044901,-500.0,0.00020273,2]
[349564271,1737297044912,-500.0,0.00020273,2]
[349564272,1737297044921,-500.0,0.00020273,2]
[349564273,1737297044931,-715.79,0.00020273,2]
[349564274,1737297044941,-268.22252158,0.00020273,2]
[349564275,1737297045108,-770.14,0.00020273,2]
[349564276,1737297045119,-505.49,0.00020273,2]
[349564277,1737297045129,-500.0,0.00020273,2]
[349564278,1737297045139,-500.0,0.00020546,2]
[349564279,1737297045151,-500.0,0.00020546,2]
[349564280,1737297045160,-564.97,0.00020546,2]
[349564281,1737297045171,-471.4916819,0.00020546,2]
[349564282,1737297045182,-500.0,0.00020546,2]
[349564283,1737297045192,-888.79,0.00020546,2]
[349564284,1737297045203,-513.62,0.00020546,2]
[349564285,1737297045214,-1454.93,0.00020546,2]
[349564286,1737297045229,-778.47,0.00020546,2]
[349564287,1737297045240,-1218.41,0.00020546,2]
[349564288,1737297045250,-1427.49,0.00020546,2]
[349564289,1737297045260,-500.0,0.00020546,2]
[349564290,1737297045270,-610.78,0.00020546,2]
[349564291,1737297045280,-699.01,0.00020546,2]
[349564292,1737297045291,-500.0,0.00020546,2]
[349564293,1737297045301,-1351.91,0.00020546,2]
[349564294,1737297045318,-1249.63,0.00020546,2]
[349564295,1737297045328,-500.0,0.00020546,2]
[349564296,1737297045339,-500.0,0.00020546,2]
[349564297,1737297045349,-500.0,0.00020546,2]
[349564298,1737297045358,-2627.85,0.00020546,2]
[349564299,1737297045369,-969.05,0.00020546,2]
[349564300,1737297045378,-500.0,0.00020546,2]
[349564301,1737297045389,-620.96,0.00020546,2]
[349564302,1737297045399,-500.0,0.00020546,2]
[349564303,1737297045409,-500.0,0.00020547,2]
[349564304,1737297045419,-187.08411737,0.00020547,2]
[349564305,1737297045428,-500.0,0.00020547,2]
[349564306,1737297045437,-371.00210465,0.00020547,2]
[349564307,1737297045447,-500.0,0.00020547,2]
[349564308,1737297045456,-500.0,0.00020547,2]
[349564310,1737297045466,-500.0,0.00020547,2]
[349564311,1737297045476,-500.0,0.00020547,2]
[349564312,1737297045485,-500.0,0.00020547,2]
[349564313,1737297045495,-500.0,0.00020547,2]
[349564314,1737297045505,-500.0,0.00020547,2]
[349564315,1737297045515,-500.0,0.00020547,2]
[349564316,1737297045524,-500.0,0.00020547,2]
[349564317,1737297045535,-500.0,0.00020547,2]
[349564318,1737297045544,-500.0,0.00020547,2]
[349564319,1737297045557,-500.0,0.00020547,2]
[349564320,1737297045567,-528.22387247,0.00020547,2]
[349564323,1737297045577,-500.0,0.00020547,2]
[349564324,1737297045587,-500.0,0.00020547,2]
[349564325,1737297045596,-1465.18,0.00020547,2]
[349564326,1737297045607,-500.0,0.00020547,2]
[349564327,1737297045616,-500.0,0.00020547,2]
[349564328,1737297045626,-500.0,0.00020547,2]
[349564329,1737297045636,-360.19477352,0.00020547,2]
[349564332,1737297045645,-500.0,0.00020547,2]
[349564335,1737297045655,-500.0,0.00020547,2]
[349564337,1737297045664,-500.0,0.00020547,2]
[349564338,1737297045674,-500.0,0.00020547,2]
[349564339,1737297045684,-500.0,0.00020547,2]
[349564340,1737297045693,-500.0,0.00020547,2]
[349564341,1737297045703,-475.17988628,0.00020547,2]
[349564342,1737297045712,-504.62,0.00020547,2]
[349564343,1737297045722,-594.73,0.00020547,2]
[349564344,1737297045732,-500.0,0.00020547,2]
[349564345,1737297045742,-396.53186288,0.00020547,2]
[349564346,1737297045752,-500.0,0.00020547,2]
[349564347,1737297045762,-500.0,0.00020547,2]
[349564348,1737297045771,-500.0,0.00020547,2]
[349564349,1737297045781,-500.0,0.00020547,2]
[349564350,1737297045791,-500.0,0.00020547,2]
[349564351,1737297045801,-267.807979,0.00020547,2]
[349564352,1737297045814,-500.0,0.00020547,2]
[349564353,1737297045831,-500.0,0.00020547,2]
[349564354,1737297045841,-500.0,0.00020547,2]
[349564355,1737297045850,-500.0,0.00020547,2]
[349564356,1737297045860,-475.588485,0.00020547,2]
[349564357,1737297045872,-500.0,0.00020547,2]
[349564358,1737297045881,-500.0,0.00020547,2]
[349564359,1737297045891,-564.50753873,0.00020547,2]
[349564360,1737297045902,-500.0,0.00020547,2]
[349564361,1737297045912,-500.0,0.00020547,2]
[349564362,1737297045921,-272.94064381,0.00020547,2]
[349564363,1737297045931,-566.64298579,0.00020547,2]
[349564364,1737297045941,-500.0,0.00020547,2]
[349564365,1737297045950,-500.0,0.00020547,2]
[349564366,1737297045959,-500.0,0.00020547,2]
[349564367,1737297045968,-500.0,0.00020547,2]
[349564368,1737297045977,-500.0,0.00020547,2]
[349564369,1737297045987,-500.0,0.00020547,2]
[349564370,1737297045996,-894.29,0.00020547,2]
[349564371,1737297046006,-500.0,0.00020547,2]
[349564372,1737297046015,-500.0,0.00020547,2]
[349564373,1737297046024,-500.0,0.00020547,2]
[349564374,1737297046034,-500.0,0.00020547,2]
[349564375,1737297046044,-500.0,0.00020547,2]
[349564376,1737297046056,-500.0,0.00020547,2]
[349564377,1737297046066,-500.0,0.00020547,2]
[349564378,1737297046076,-500.0,0.00020547,2]
[349564379,1737297046086,-445.64683418,0.00020547,2]
[349564400,1737297046603,-54.35316582,0.00020547,2]
[349564402,1737297046612,-960.31,0.00020547,2]
[349564404,1737297046621,-500.0,0.00020547,2]
[349564405,1737297046630,-642.02,0.00020547,2]
[349564407,1737297046640,-500.0,0.00020547,2]
[349564409,1737297046650,-675.63,0.00020547,2]
[349564411,1737297046659,-950.79,0.00020547,2]
[349564413,1737297046668,-500.0,0.00020547,2]
[349564414,1737297046678,-531.04,0.00020547,2]
[349564416,1737297046687,-500.0,0.00020547,2]
[349564418,1737297046696,-500.0,0.00020547,2]
[349564420,1737297046706,-1112.84,0.00020547,2]
[349564422,1737297046716,-1029.94,0.00020547,2]
[349564424,1737297046725,-500.0,0.00020547,2]
[349564426,1737297046735,-500.0,0.00020547,2]
[349564428,1737297046744,-500.0,0.00020547,2]
[349564430,1737297046754,-500.0,0.00020547,2]
[349564432,1737297046764,-500.0,0.00020547,2]
[349564434,1737297046773,-624.14896951,0.00020547,2]
[349564436,1737297046783,-562.67,0.00020547,2]
[349564438,1737297046792,-500.0,0.00020547,2]
[349564440,1737297046802,-500.0,0.00020547,2]
[349564442,1737297046814,-500.0,0.00020547,2]
[349564444,1737297046824,-500.0,0.00020547,2]
[349564446,1737297046833,-627.94,0.00020547,2]
[349564447,1737297046843,-500.0,0.00020547,2]
[349564449,1737297046852,-988.26,0.00020547,2]
[349564451,1737297046861,-767.92,0.00020547,2]
[349564452,1737297046871,-500.0,0.00020547,2]
[349564453,1737297046880,-1345.32,0.00020547,2]
[349564454,1737297046890,-164.30289706,0.00020547,2]
[349564455,1737297046899,-500.0,0.00020547,2]
[349564456,1737297046910,-500.0,0.00020547,2]
[349564457,1737297046920,-542.2,0.00020547,2]
[349564458,1737297046931,-580.91,0.00020547,2]
[349564459,1737297046943,-555.56,0.00020547,2]
[349564460,1737297046952,-500.0,0.00020547,2]
[349564461,1737297046962,-766.47,0.00020547,2]
[349564462,1737297046971,-573.09,0.00020547,2]
[349564463,1737297046981,-500.0,0.00020547,2]
[349564464,1737297046990,-500.0,0.00020547,2]
[349564465,1737297047000,-512.48,0.00020547,2]
[349564466,1737297047010,-1534.11,0.00020547,2]
[349564467,1737297047019,-813.94,0.00020547,2]
[349564468,1737297047028,-798.62,0.00020547,2]
[349564469,1737297047038,-1219.69,0.00020547,2]
[349564470,1737297047047,-500.0,0.00020547,2]
[349564471,1737297047060,-500.0,0.00020547,2]
[349564472,1737297047069,-500.0,0.00020547,2]
[349564473,1737297047079,-1059.51,0.00020547,2]
[349564474,1737297047088,-500.0,0.00020547,2]
[349564475,1737297047098,-500.0,0.00020547,2]
[349564476,1737297047107,-500.0,0.00020547,2]
[349564477,1737297047117,-836.41,0.00020547,2]
[349564478,1737297047126,-2009.29,0.00020547,2]
[349564479,1737297047136,-500.0,0.00020547,2]
[349564480,1737297047145,-190.06712896,0.00020547,2]
[349564481,1737297047157,-1977.7,0.00020547,2]
[349564482,1737297047167,-1978.06,0.00020547,2]
[349564483,1737297047176,-800.83,0.00020547,2]
[349564484,1737297047185,-500.0,0.00020547,2]
[349564485,1737297047195,-2635.49,0.00020547,2]
[349564486,1737297047204,-691.78,0.00020547,2]
[349564487,1737297047214,-500.0,0.00020547,2]
[349564488,1737297047224,-500.0,0.00020547,2]
[349564489,1737297047234,-500.0,0.00020547,2]
[349564490,1737297047244,-500.0,0.00020547,2]
[349564491,1737297047253,-4047.21,0.00020547,2]
[349564492,1737297047263,-500.0,0.00020547,2]
[349564493,1737297047272,-529.81,0.00020547,2]
[349564494,1737297047282,-500.0,0.00020547,2]
[349564495,1737297047293,-500.0,0.00020547,2]
[349564496,1737297047302,-500.0,0.00020547,2]
[349564497,1737297047315,-500.0,0.00020547,2]
[349564498,1737297047324,-513.23,0.00020547,2]
[349564499,1737297047334,-922.3,0.00020547,2]
[349564500,1737297047344,-4552.87,0.00020547,2]
[349564501,1737297047354,-643.63,0.00020547,2]
[349564502,1737297047363,-500.0,0.00020547,2]
[349564503,1737297047373,-500.0,0.00020547,2]
[349564504,1737297047382,-558.78,0.00020547,2]
[349564505,1737297047392,-683.47,0.00020547,2]
[349564506,1737297047401,-92.08874419,0.00020547,2]
[349564507,1737297047414,-318.9913852,0.00020547,2]
[349564508,1737297047425,-459.92987061,0.00020547,2]
[349564509,1737297047435,-525.32,0.00020547,2]
[349564510,1737297047444,-325.64764661,0.00020547,2]
[349564511,1737297047455,-662.95235339,0.00020547,2]
[349564512,1737297047464,-503.13,0.00020547,2]
[349564513,1737297047474,-3769.81,0.00020547,2]
[349564514,1737297047483,-1181.73,0.00020547,2]
[349564515,1737297047492,-753.13,0.00020547,2]
[349564516,1737297047538,-500.0,0.00020547,2]
[349564517,1737297047547,-2169.36,0.00020547,2]
[349564518,1737297047560,-500.0,0.00020547,2]
[349564519,1737297047570,-500.0,0.00020547,2]
[349564520,1737297047579,-500.0,0.00020547,2]